fUSD/lending_fUSD_20250530
["ID","MTS","AMOUNT","RATE_DAILY","PERIOD"]
[363215234,1748625056996,-931.58,0.00021917,2]
[363215235,1748625057006,-420.0,0.00021917,2]
[363215236,1748625057015,-520.51236519,0.00021917,2]
[363215237,1748625057026,-420.0,0.00021917,2]
[363215238,1748625057036,-420.0,0.00021917,2]
[363215239,1748625057045,-420.0,0.00021917,2]
[363215240,1748625057056,-420.0,0.00021917,2]
[363215241,1748625057067,-420.0,0.00021917,2]
[363215242,1748625057077,-863.32,0.00021917,2]
[363215243,1748625057087,-1157.6,0.00021917,2]
[363215244,1748625057097,-506.79062098,0.00021917,2]
[363215245,1748625057107,-420.0,0.00021917,2]
[363215246,1748625057117,-420.0,0.00021917,2]
[363215247,1748625057127,-420.0,0.00021917,2]
[363215248,1748625057138,-420.0,0.00021917,2]
[363215249,1748625057148,-420.0,0.00021917,2]
[363215250,1748625057159,-420.0,0.00021917,2]
[363215251,1748625057169,-2462.46,0.00021917,2]
[363215252,1748625057182,-9927.54,0.00021917,2]
[363215253,1748625057192,-420.0,0.00021917,2]
[363215254,1748625057202,-890.58,0.00021917,2]
[363215255,1748625057212,-1376.02,0.00021917,2]
[363215256,1748625057221,-420.0,0.00021917,2]
[363215257,1748625057231,-420.0,0.00021917,2]
[363215258,1748625057241,-484.26,0.00021917,2]
[363215259,1748625057250,-423.36620061,0.00021917,2]
[363215260,1748625057260,-420.0,0.00021917,2]
[363215261,1748625057343,-420.0,0.00021917,2]
[363215262,1748625057353,-530.42,0.00021917,2]
[363215263,1748625057363,-612.89,0.00021917,2]
[363215264,1748625057372,-512.28,0.00021917,2]
[363215265,1748625057382,-7472.97,0.00021917,2]
[363215266,1748625057392,-420.0,0.00021917,2]
[363215267,1748625057402,-420.0,0.00021917,2]
[363215268,1748625057411,-420.0,0.00021917,2]
[363215269,1748625057421,-420.0,0.00021917,2]
[363215270,1748625057432,-1175.39,0.00021917,2]
[363215271,1748625057442,-420.0,0.00021917,2]
[363215272,1748625057452,-4772.19,0.00021917,2]
[363215273,1748625057461,-420.0,0.00021917,2]
[363215274,1748625057471,-1232.42,0.00021917,2]
[363215275,1748625057481,-548.43,0.00021917,2]
[363215276,1748625057490,-420.0,0.00021917,2]
[363215277,1748625057499,-1502.08,0.00021917,2]
[363215278,1748625057509,-420.0,0.00021917,2]
[363215279,1748625057519,-785.41,0.00021917,2]
[363215280,1748625057529,-1267.78,0.00021917,2]
[363215281,1748625057539,-3485.21,0.00021917,2]
[363215282,1748625057548,-420.0,0.00021917,2]
[363215283,1748625057558,-420.0,0.00021917,2]
[363215284,1748625057567,-420.0,0.00021917,2]
[363215285,1748625057577,-869.8,0.00021917,2]
[363215286,1748625057586,-420.0,0.00021917,2]
[363215287,1748625057596,-7725.0,0.00021917,2]
[363215288,1748625057605,-614.59,0.00021917,2]
[363215289,1748625057614,-1190.63,0.00021917,2]
[363215290,1748625057623,-421.07952466,0.00021917,2]
[363215291,1748625057633,-1006.83,0.00021917,2]
[363215292,1748625057643,-542.41,0.00021917,2]
[363215293,1748625057653,-420.0,0.00021917,2]
[363215294,1748625057663,-420.0,0.00021917,2]
[363215295,1748625057673,-945.24,0.00021917,2]
[363215296,1748625057682,-432.01146806,0.00021917,2]
[363215297,1748625057692,-420.0,0.00021917,2]
[363215298,1748625057701,-420.0,0.00021917,2]
[363215299,1748625057711,-420.0,0.00021917,2]
[363215300,1748625057721,-2376.81,0.00021917,2]
[363215301,1748625057730,-540.20194575,0.00021917,2]
[363215302,1748625057739,-420.0,0.00021917,2]
[363215303,1748625057749,-420.0,0.00021917,2]
[363215304,1748625057758,-5110.77,0.00021917,2]
[363215305,1748625057767,-561.47,0.00021917,2]
[363215306,1748625057777,-1785.97,0.00021917,2]
[363215307,1748625057786,-1000.0,0.00021917,2]
[363215308,1748625057795,-1445.68,0.00021917,2]
[363215309,1748625057805,-420.0,0.00021917,2]
[363215310,1748625057814,-420.0,0.00021917,2]
[363215311,1748625057823,-1054.94,0.00021917,2]
[363215312,1748625057832,-770.34,0.00021917,2]
[363215313,1748625057842,-420.0,0.00021917,2]
[363215314,1748625057852,-595.84,0.00021917,2]
[363215315,1748625057862,-420.0,0.00021917,2]
[363215316,1748625057873,-420.0,0.00021917,2]
[363215317,1748625057883,-1432.67,0.00021917,2]
[363215318,1748625057893,-431.54865081,0.00021917,2]
[363215319,1748625057904,-420.0,0.00021917,2]
[363215320,1748625057915,-6264.61,0.00021917,2]
[363215321,1748625057929,-420.0,0.00021917,2]
[363215322,1748625057939,-810.81,0.00021917,2]
[363215323,1748625057949,-530.70128962,0.00021917,2]
[363215324,1748625057958,-885.97,0.00021917,2]
[363215325,1748625057969,-463.23,0.00021917,2]
[363215326,1748625057979,-420.0,0.00021917,2]
[363215327,1748625057994,-420.0,0.00021917,2]
[363215328,1748625058003,-420.0,0.00021917,2]
[363215329,1748625058014,-420.0,0.00021917,2]
[363215330,1748625058023,-420.0,0.00021917,2]
[363215331,1748625058034,-420.0,0.00021917,2]
[363215332,1748625058043,-423.48637536,0.00021917,2]
[363215333,1748625058054,-420.0,0.00021917,2]
[363215334,1748625058064,-420.0,0.00021917,2]
[363215335,1748625058074,-780.99,0.00021917,2]
[363215336,1748625058083,-420.0,0.00021917,2]
[363215337,1748625058093,-2202.64,0.00021917,2]
[363215338,1748625058103,-420.0,0.00021917,2]
[363215339,1748625058112,-895.07,0.00021917,2]
[363215340,1748625058122,-500.0,0.00021918,2]
[363215341,1748625058131,-500.0,0.00021918,2]
[363215342,1748625058139,-274.49975684,0.00021918,2]
[363215343,1748625058148,-500.0,0.00021918,2]
[363215344,1748625058157,-500.0,0.00021918,2]
[363215345,1748625058166,-500.0,0.00021918,2]
[363215346,1748625058184,-500.0,0.00021918,2]
[363215347,1748625058192,-500.0,0.00021918,2]
[363215348,1748625058201,-500.0,0.00021918,2]
[363215349,1748625058210,-500.0,0.00021918,2]
[363215350,1748625058219,-500.0,0.00021918,2]
[363215351,1748625058228,-346.23631239,0.00021918,2]
[363215352,1748625058237,-500.0,0.00021918,2]
[363215353,1748625058246,-500.0,0.00021918,2]
[363215354,1748625058255,-500.0,0.00021918,2]
[363215355,1748625058264,-500.0,0.00021918,2]
[363215356,1748625058273,-500.0,0.00021918,2]
[363215357,1748625058282,-1719.62383097,0.00021932,2]
[363215358,1748625058292,-169.31,0.00021935,2]
[363215359,1748625058302,-1719.62383097,0.00021961,2]
[363215360,1748625058311,-3607.08074568,0.00021969,2]
[363215361,1748625058321,-2973.05815968,0.00021969,2]
[363215362,1748625058330,-1719.62383097,0.0002199,2]
[363215363,1748625058340,-178.0,0.00022,2]
[363215364,1748625058349,-1719.62383097,0.00022019,2]
[363215365,1748625058358,-315.0,0.00022026,2]
[363215366,1748625058368,-4068.0,0.00022032,2]
[363215367,1748625058378,-6929.0,0.00022032,2]
[363215368,1748625058387,-180.631,0.00022032,2]
[363215369,1748625058396,-284.369,0.00022032,2]
[363215370,1748625058406,-848.0,0.00022032,2]
[363215371,1748625058415,-887.398,0.00022032,2]
[363215372,1748625058428,-1719.62383097,0.00022048,2]
[363215373,1748625058437,-1719.62383097,0.00022077,2]
[363215374,1748625058448,-201.15760238,0.00022081,2]
[363215375,1748625058458,-500.0,0.0002209,2]
[363215376,1748625058467,-500.0,0.0002209,2]
[363215377,1748625058476,-474.0287,0.00022091,2]
[363215378,1748625058486,-7762.0801,0.00022091,2]
[363215379,1748625058496,-207276.4684,0.00022091,2]
[363215380,1748625058505,-1000.0,0.00022091,2]
[363215381,1748625058514,-150.866,0.00022098,2]
[363215382,1748625058524,-183.345,0.00022098,2]
[363215383,1748625058533,-178.301,0.00022098,2]
[363215384,1748625058543,-150.172,0.00022098,2]
[363215385,1748625058552,-1719.62383097,0.00022105,2]
[363215386,1748625058562,-3607.08074568,0.00022121,2]
[363215387,1748625058571,-2973.05815968,0.00022121,2]
[363215388,1748625058582,-1719.62383097,0.00022134,2]
[363215389,1748625058591,-1719.62383097,0.00022163,2]
[363215390,1748625058601,-10484.42,0.00022165,2]
[363215391,1748625058611,-500.0,0.00022173,2]
[363215392,1748625058620,-500.0,0.00022173,2]
[363215393,1748625058630,-500.0,0.00022173,2]
[363215394,1748625058640,-504.78582876,0.00022173,2]
[363215395,1748625058649,-500.0,0.00022173,2]
[363215396,1748625058659,-500.0,0.00022173,2]
[363215397,1748625058668,-500.0,0.00022173,2]
[363215398,1748625058679,-500.0,0.00022173,2]
[363215399,1748625058688,-501.41094564,0.00022173,2]
[363215400,1748625058697,-321.54062769,0.0002219,2]
[363215401,1748625058707,-420.0,0.0002219,2]
[363215402,1748625058716,-422.12097582,0.0002219,2]
[363215403,1748625058725,-190.45575363,0.0002219,2]
[363215404,1748625058735,-301.89408104,0.0002219,2]
[363215405,1748625058745,-420.0,0.0002219,2]
[363215406,1748625058754,-420.0,0.0002219,2]
[363215407,1748625058763,-420.0,0.0002219,2]
[363215408,1748625058773,-427.50398228,0.0002219,2]
[363215409,1748625058782,-420.0,0.0002219,2]
[363215410,1748625058792,-420.0,0.0002219,2]
[363215411,1748625058801,-299.93749281,0.0002219,2]
[363215412,1748625058810,-201.25014101,0.0002219,2]
[363215413,1748625058820,-586.21913611,0.0002219,2]
[363215414,1748625058829,-243.18841397,0.0002219,2]
[363215415,1748625058838,-304.44326403,0.0002219,2]
[363215416,1748625058848,-500.0,0.0002219,2]
[363215417,1748625058857,-317.68158812,0.0002219,2]
[363215418,1748625058866,-500.0,0.0002219,2]
[363215419,1748625058875,-500.0,0.0002219,2]
[363215420,1748625058884,-500.0,0.0002219,2]
[363215421,1748625058894,-500.0,0.0002219,2]
[363215422,1748625058903,-500.0,0.0002219,2]
[363215423,1748625058913,-500.0,0.0002219,2]
[363215424,1748625058922,-500.0,0.0002219,2]
[363215425,1748625058933,-500.0,0.0002219,2]
[363215426,1748625058943,-287.81408821,0.0002219,2]
[363215427,1748625058953,-500.0,0.0002219,2]
[363215428,1748625058963,-500.0,0.0002219,2]
[363215429,1748625058973,-500.0,0.0002219,2]
[363215430,1748625058984,-237.99774368,0.0002219,2]
[363215431,1748625058996,-500.0,0.0002219,2]
[363215432,1748625059006,-589.4973513,0.0002219,2]
[363215433,1748625059015,-1981.71,0.0002219,2]
[363215434,1748625059026,-739.87,0.0002219,2]
[363215435,1748625059036,-2898.99,0.0002219,2]
[363215436,1748625059045,-6988.54,0.0002219,2]
[363215437,1748625059055,-7300.8,0.0002219,2]
[363215438,1748625059066,-1426.72,0.0002219,2]
[363215439,1748625059075,-9133.68,0.0002219,2]
[363215440,1748625059085,-22781.92,0.0002219,2]
[363215441,1748625059094,-7025.96,0.0002219,2]
[363215442,1748625059103,-1139.88,0.0002219,2]
[363215443,1748625059113,-423.97452154,0.00022191,2]
[363215444,1748625059123,-420.0,0.00022191,2]
[363215445,1748625059132,-422.9702111,0.00022191,2]
[363215446,1748625059142,-420.0,0.00022191,2]
[363215447,1748625059151,-420.0,0.00022191,2]
[363215448,1748625059161,-420.0,0.00022191,2]
[363215449,1748625059170,-420.0,0.00022191,2]
[363215450,1748625059184,-501.47,0.00022191,2]
[363215451,1748625059194,-420.0,0.00022191,2]
[363215452,1748625059203,-420.0,0.00022191,2]
[363215453,1748625059213,-420.0,0.00022191,2]
[363215454,1748625059222,-543.68,0.00022191,2]
[363215455,1748625059232,-420.0,0.00022191,2]
[363215456,1748625059241,-455.58,0.00022191,2]
[363215457,1748625059250,-420.0,0.00022191,2]
[363215458,1748625059260,-178.6524891,0.00022191,2]
[363215459,1748625059269,-420.0,0.00022191,2]
[363215460,1748625059279,-160.0,0.00022191,2]
[363215461,1748625059289,-420.0,0.00022191,2]
[363215462,1748625059299,-420.0,0.00022191,2]
[363215463,1748625059308,-420.0,0.00022191,2]
[363215464,1748625059318,-618.89,0.00022191,2]
[363215465,1748625059327,-270.0,0.00022191,2]
[363215466,1748625059337,-420.0,0.00022191,2]
[363215467,1748625059347,-420.0,0.00022191,2]
[363215468,1748625059357,-420.0,0.00022191,2]
[363215469,1748625059367,-420.0,0.00022191,2]
[363215470,1748625059377,-420.0,0.00022191,2]
[363215471,1748625059386,-420.0,0.00022191,2]
[363215472,1748625059395,-420.0,0.00022191,2]
[363215473,1748625059404,-420.0,0.00022191,2]
[363215474,1748625059414,-420.0,0.00022191,2]
[363215475,1748625059423,-420.0,0.00022191,2]
[363215476,1748625059432,-420.0,0.00022191,2]
[363215477,1748625059441,-420.0,0.00022191,2]
[363215478,1748625059451,-420.0,0.00022191,2]
[363215479,1748625059460,-420.0,0.00022191,2]
[363215480,1748625059469,-420.0,0.00022191,2]
[363215481,1748625059479,-420.0,0.00022191,2]
[363215482,1748625059488,-420.0,0.00022191,2]
[363215483,1748625059497,-289.64592976,0.00022191,2]
[363215484,1748625059507,-420.0,0.00022191,2]
[363215485,1748625059516,-427.16437522,0.00022191,2]
[363215486,1748625059526,-431.39206111,0.00022191,2]
[363215487,1748625059535,-420.0,0.00022191,2]
[363215488,1748625059545,-420.0,0.00022191,2]
[363215489,1748625059554,-420.0,0.00022191,2]
[363215490,1748625059563,-625.87,0.00022191,2]
[363215491,1748625059573,-421.98355904,0.00022191,2]
[363215492,1748625059582,-479.28,0.00022191,2]
[363215493,1748625059592,-420.0,0.00022191,2]
[363215494,1748625059601,-420.0,0.00022191,2]
[363215495,1748625059611,-307.08084353,0.00022191,2]
[363215496,1748625059620,-420.0,0.00022191,2]
[363215497,1748625059630,-420.0,0.00022191,2]
[363215498,1748625059639,-420.0,0.00022191,2]
[363215499,1748625059649,-420.0,0.00022191,2]
[363215500,1748625059658,-420.0,0.00022191,2]
[363215501,1748625059667,-158.05827185,0.00022191,2]
[363215502,1748625059678,-420.0,0.00022191,2]
[363215503,1748625059687,-420.0,0.00022191,2]
[363215504,1748625059697,-420.0,0.00022191,2]
[363215505,1748625059706,-420.0,0.00022191,2]
[363215506,1748625059715,-420.0,0.00022191,2]
[363215507,1748625059725,-424.2378966,0.00022191,2]
[363215508,1748625059734,-420.0,0.00022191,2]
[363215509,1748625059743,-420.0,0.00022191,2]
[363215510,1748625059752,-420.0,0.00022191,2]
[363215511,1748625059762,-420.0,0.00022191,2]
[363215512,1748625059771,-427.44780239,0.00022191,2]
[363215513,1748625059781,-420.0,0.00022191,2]
[363215514,1748625059791,-420.0,0.00022191,2]
[363215515,1748625059800,-420.0,0.00022191,2]
[363215516,1748625059810,-420.0,0.00022191,2]
[363215517,1748625059819,-425.3177623,0.00022191,2]
[363215518,1748625059828,-420.0,0.00022191,2]
[363215519,1748625059838,-422.64037548,0.00022191,2]
[363215520,1748625059847,-420.0,0.00022191,2]
[363215521,1748625059856,-420.0,0.00022191,2]
[363215522,1748625059866,-767.97,0.00022191,2]
[363215523,1748625059876,-420.0,0.00022191,2]
[363215524,1748625059885,-420.0,0.00022191,2]
[363215525,1748625059894,-420.0,0.00022191,2]
[363215526,1748625059904,-420.0,0.00022191,2]
[363215527,1748625059913,-420.0,0.00022191,2]
[363215528,1748625059923,-420.0,0.00022191,2]
[363215529,1748625059933,-420.0,0.00022191,2]
[363215530,1748625059943,-420.0,0.00022191,2]
[363215531,1748625059952,-420.0,0.00022191,2]
[363215532,1748625059963,-420.0,0.00022191,2]
[363215533,1748625059974,-538.41,0.00022191,2]
[363215534,1748625059988,-420.0,0.00022191,2]
[363215535,1748625060003,-420.0,0.00022191,2]
[363215536,1748625060013,-420.0,0.00022191,2]
[363215537,1748625060023,-426.48559626,0.00022191,2]
[363215538,1748625060033,-420.0,0.00022191,2]
[363215539,1748625060044,-420.0,0.00022191,2]
[363215540,1748625060054,-420.0,0.00022191,2]
[363215541,1748625060064,-420.0,0.00022191,2]
[363215542,1748625060075,-420.0,0.00022191,2]
[363215543,1748625060084,-420.0,0.00022191,2]
[363215544,1748625060094,-420.0,0.00022191,2]
[363215545,1748625060103,-420.0,0.00022191,2]
[363215546,1748625060112,-420.0,0.00022191,2]
[363215547,1748625060122,-423.97162541,0.00022191,2]
[363215548,1748625060131,-420.0,0.00022191,2]
[363215549,1748625060140,-420.0,0.00022191,2]
[363215550,1748625060150,-474.11,0.00022191,2]
[363215551,1748625060159,-420.0,0.00022191,2]
[363215552,1748625060170,-420.0,0.00022191,2]
[363215553,1748625060182,-420.0,0.00022191,2]
[363215554,1748625060191,-536.96471163,0.00022191,2]
[363215555,1748625060201,-420.0,0.00022191,2]
[363215556,1748625060211,-420.0,0.00022191,2]
[363215557,1748625060220,-420.0,0.00022191,2]
[363215558,1748625060230,-420.0,0.00022191,2]
[363215559,1748625060240,-420.0,0.00022191,2]
[363215560,1748625060249,-507.03887841,0.00022191,2]
[363215561,1748625060259,-420.0,0.00022191,2]
[363215562,1748625060269,-420.0,0.00022191,2]
[363215563,1748625060279,-420.0,0.00022191,2]
[363215564,1748625060288,-420.0,0.00022191,2]
[363215565,1748625060297,-420.0,0.00022191,2]
[363215566,1748625060307,-420.0,0.00022191,2]
[363215567,1748625060317,-166.69,0.00022191,2]
[363215568,1748625060326,-420.0,0.00022191,2]
[363215569,1748625060336,-420.0,0.00022191,2]
[363215570,1748625060346,-420.0,0.00022191,2]
[363215571,1748625060356,-420.0,0.00022191,2]
[363215572,1748625060365,-420.0,0.00022191,2]
[363215573,1748625060375,-420.0,0.00022191,2]
[363215574,1748625060386,-420.0,0.00022191,2]
[363215575,1748625060395,-420.0,0.00022191,2]
[363215576,1748625060407,-420.0,0.00022191,2]
[363215577,1748625060416,-427.4518134,0.00022191,2]
[363215578,1748625060428,-420.0,0.00022191,2]
[363215579,1748625060437,-420.0,0.00022191,2]
[363215580,1748625060447,-420.0,0.00022191,2]
[363215581,1748625060457,-420.0,0.00022191,2]
[363215582,1748625060466,-707.61,0.00022191,2]
[363215583,1748625060476,-420.0,0.00022191,2]
[363215584,1748625060486,-1693.06,0.00022191,2]
[363215585,1748625060495,-516.59310912,0.00022191,2]
[363215586,1748625060504,-421.68204441,0.00022191,2]
[363215587,1748625060514,-420.0,0.00022191,2]
[363215588,1748625060523,-420.0,0.00022191,2]
[363215589,1748625060533,-425.72794533,0.00022191,2]
[363215590,1748625060543,-447.25,0.00022191,2]
[363215591,1748625060552,-1227.8,0.00022191,2]
[363215592,1748625060562,-420.0,0.00022191,2]
[363215593,1748625060572,-420.0,0.00022191,2]
[363215594,1748625060582,-420.0,0.00022191,2]
[363215595,1748625060591,-420.0,0.00022191,2]
[363215596,1748625060601,-773.15,0.00022191,2]
[363215597,1748625060611,-420.0,0.00022191,2]
[363215598,1748625060621,-420.0,0.00022191,2]
[363215599,1748625060631,-425.30718962,0.00022191,2]
[363215600,1748625060641,-289.59024576,0.00022191,2]
[363215601,1748625060651,-405.49802524,0.00022191,2]
[363215602,1748625060661,-500.8,0.00022191,2]
[363215603,1748625060673,-420.0,0.00022191,2]
[363215604,1748625060683,-1146.66,0.00022191,2]
[363215605,1748625060692,-429.48524002,0.00022191,2]
[363215606,1748625060702,-171.1304298,0.00022191,2]
[363215607,1748625060712,-420.0,0.00022191,2]
[363215608,1748625060722,-420.0,0.00022191,2]
[363215609,1748625060732,-500.0,0.00022191,2]
[363215610,1748625060741,-420.0,0.00022191,2]
[363215611,1748625060751,-744.11,0.00022191,2]
[363215612,1748625060761,-420.0,0.00022191,2]
[363215613,1748625060771,-420.0,0.00022191,2]
[363215614,1748625060782,-420.0,0.00022191,2]
[363215615,1748625060792,-420.0,0.00022191,2]
[363215616,1748625060802,-1199.24,0.00022191,2]
[363215617,1748625060812,-420.0,0.00022191,2]
[363215618,1748625060821,-166.13286419,0.00022191,2]
[363215619,1748625060831,-420.0,0.00022191,2]
[363215620,1748625060840,-420.0,0.00022191,2]
[363215621,1748625060850,-427.9,0.00022191,2]
[363215622,1748625060859,-420.0,0.00022191,2]
[363215623,1748625060869,-420.0,0.00022191,2]
[363215624,1748625060879,-726.5,0.00022191,2]
[363215625,1748625060889,-420.0,0.00022191,2]
[363215626,1748625060899,-420.0,0.00022191,2]
[363215627,1748625060909,-420.0,0.00022191,2]
[363215628,1748625060919,-420.0,0.00022191,2]
[363215629,1748625060930,-420.0,0.00022191,2]
[363215630,1748625060940,-420.0,0.00022191,2]
[363215631,1748625060950,-420.0,0.00022191,2]
[363215632,1748625060960,-420.0,0.00022191,2]
[363215633,1748625060969,-420.0,0.00022191,2]
[363215634,1748625060980,-420.0,0.00022191,2]
[363215635,1748625060992,-420.0,0.00022191,2]
[363215636,1748625061001,-420.0,0.00022191,2]
[363215637,1748625061011,-503.86,0.00022191,2]
[363215638,1748625061022,-173.03375349,0.00022191,2]
[363215639,1748625061031,-420.0,0.00022191,2]
[363215640,1748625061041,-420.0,0.00022191,2]
[363215641,1748625061050,-420.0,0.00022191,2]
[363215642,1748625061061,-420.0,0.00022191,2]
[363215643,1748625061070,-420.0,0.00022191,2]
[363215644,1748625061080,-420.0,0.00022191,2]
[363215645,1748625061089,-968.4,0.00022191,2]
[363215646,1748625061099,-420.0,0.00022191,2]
[363215647,1748625061108,-420.0,0.00022191,2]
[363215648,1748625061118,-420.0,0.00022191,2]
[363215649,1748625061127,-931.16,0.00022191,2]
[363215650,1748625061137,-420.0,0.00022191,2]
[363215651,1748625061147,-161.86898578,0.00022191,2]
[363215652,1748625061156,-420.0,0.00022191,2]
[363215653,1748625061166,-420.0,0.00022191,2]
[363215654,1748625061176,-420.0,0.00022191,2]
[363215655,1748625061186,-654.32,0.00022191,2]
[363215656,1748625061196,-420.0,0.00022191,2]
[363215657,1748625061206,-420.0,0.00022191,2]
[363215658,1748625061216,-512.86,0.00022191,2]
[363215659,1748625061226,-420.0,0.00022191,2]
[363215660,1748625061236,-535.34,0.00022191,2]
[363215661,1748625061246,-456.33,0.00022191,2]
[363215662,1748625061255,-420.0,0.00022191,2]
[363215663,1748625061265,-420.0,0.00022191,2]
[363215664,1748625061275,-420.0,0.00022191,2]
[363215665,1748625061285,-1933.18,0.00022191,2]
[363215666,1748625061296,-420.0,0.00022191,2]
[363215667,1748625061305,-454.61,0.00022191,2]
[363215668,1748625061315,-850.22,0.00022191,2]
[363215669,1748625061325,-420.0,0.00022191,2]
[363215670,1748625061334,-324.40915949,0.00022191,2]
[363215671,1748625061344,-420.0,0.00022191,2]
[363215672,1748625061354,-420.0,0.00022191,2]
[363215673,1748625061363,-420.0,0.00022191,2]
[363215674,1748625061373,-420.0,0.00022191,2]
[363215675,1748625061384,-420.98166119,0.00022191,2]
[363215676,1748625061393,-420.0,0.00022191,2]
[363215677,1748625061403,-794.28,0.00022191,2]
[363215678,1748625061413,-420.0,0.00022191,2]
[363215679,1748625061423,-420.0,0.00022191,2]
[363215680,1748625061433,-420.0,0.00022191,2]
[363215681,1748625061443,-591.04,0.00022191,2]
[363215682,1748625061453,-966.22,0.00022191,2]
[363215683,1748625061463,-420.0,0.00022191,2]
[363215684,1748625061473,-1883.77,0.00022191,2]
[363215685,1748625061483,-420.0,0.00022191,2]
[363215686,1748625061493,-420.0,0.00022191,2]
[363215687,1748625061503,-426.38436732,0.00022191,2]
[363215688,1748625061513,-466.56,0.00022191,2]
[363215689,1748625061523,-754.05,0.00022191,2]
[363215690,1748625061533,-420.0,0.00022191,2]
[363215691,1748625061543,-420.0,0.00022191,2]
[363215692,1748625061553,-420.0,0.00022191,2]
[363215693,1748625061563,-420.0,0.00022191,2]
[363215694,1748625061572,-420.0,0.00022191,2]
[363215695,1748625061582,-562.4,0.00022191,2]
[363215696,1748625061592,-637.54,0.00022191,2]
[363215697,1748625061602,-626.12,0.00022191,2]
[363215698,1748625061612,-420.0,0.00022191,2]
[363215699,1748625061622,-420.0,0.00022191,2]
[363215700,1748625061631,-570.41,0.00022191,2]
[363215701,1748625061641,-277.94,0.00022191,2]
[363215702,1748625061651,-420.0,0.00022191,2]
[363215703,1748625061660,-427.85585583,0.00022191,2]
[363215704,1748625061670,-420.0,0.00022191,2]
[363215705,1748625061683,-1030.16,0.00022191,2]
[363215706,1748625061693,-565.55,0.00022191,2]
[363215707,1748625061704,-420.0,0.00022191,2]
[363215708,1748625061714,-580.8,0.00022191,2]
[363215709,1748625061723,-316.93835851,0.00022191,2]
[363215710,1748625061735,-420.0,0.00022191,2]
[363215711,1748625061745,-420.0,0.00022191,2]
[363215712,1748625061755,-320.10721585,0.00022191,2]
[363215713,1748625061764,-618.44,0.00022191,2]
[363215714,1748625061775,-457.22060167,0.00022191,2]
[363215715,1748625061785,-1410.52,0.00022191,2]
[363215716,1748625061794,-697.57,0.00022191,2]
[363215717,1748625061804,-621.76,0.00022191,2]
[363215718,1748625061814,-422.329637,0.00022191,2]
[363215719,1748625061823,-470.29,0.00022191,2]
[363215720,1748625061833,-420.0,0.00022191,2]
[363215721,1748625061843,-1022.69,0.00022191,2]
[363215722,1748625061852,-420.0,0.00022191,2]
[363215723,1748625061862,-420.0,0.00022191,2]
[363215724,1748625061872,-912.0,0.00022191,2]
[363215725,1748625061882,-612.65,0.00022191,2]
[363215726,1748625061891,-672.85,0.00022191,2]
[363215727,1748625061901,-425.86251648,0.00022191,2]
[363215728,1748625061911,-423.57456148,0.00022191,2]
[363215729,1748625061921,-420.0,0.00022191,2]
[363215730,1748625061932,-420.0,0.00022191,2]
[363215731,1748625061942,-421.45,0.00022191,2]
[363215732,1748625061952,-548.48,0.00022191,2]
[363215733,1748625061961,-495.94,0.00022191,2]